fUST/lending_fUST_20250318
["ID","MTS","AMOUNT","RATE_DAILY","PERIOD"]
[356313742,1742244652280,-809.23,9.315e-05,2]
[356313743,1742244652290,-500.0,9.315e-05,2]
[356313744,1742244652299,-500.0,9.315e-05,2]
[356313745,1742244652308,-706.12,9.315e-05,2]
[356313746,1742244652317,-500.0,9.315e-05,2]
[356313747,1742244652326,-500.0,9.315e-05,2]
[356313748,1742244652336,-500.0,9.315e-05,2]
[356313749,1742244652345,-500.0,9.315e-05,2]
[356313750,1742244652354,-500.0,9.315e-05,2]
[356313751,1742244652363,-500.0,9.315e-05,2]
[356313752,1742244652372,-500.0,9.315e-05,2]
[356313753,1742244652381,-500.0,9.315e-05,2]
[356313754,1742244652390,-9557.86,9.315e-05,2]
[356313755,1742244652400,-500.0,9.315e-05,2]
[356313756,1742244652409,-500.0,9.315e-05,2]
[356313757,1742244652418,-500.0,9.315e-05,2]
[356313758,1742244652427,-1475.55,9.315e-05,2]
[356313759,1742244652437,-500.0,9.315e-05,2]
[356313760,1742244652446,-1173.32,9.315e-05,2]
[356313761,1742244652455,-239.45,9.315e-05,2]
[356313762,1742244652464,-500.0,9.315e-05,2]
[356313763,1742244652474,-1003.57,9.315e-05,2]
[356313764,1742244652483,-886.84,9.315e-05,2]
[356313765,1742244652492,-500.0,9.315e-05,2]
[356313766,1742244652502,-500.0,9.315e-05,2]
[356313767,1742244652511,-500.0,9.315e-05,2]
[356313768,1742244652521,-500.0,9.315e-05,2]
[356313769,1742244652530,-667.79,9.315e-05,2]
[356313770,1742244652539,-500.0,9.315e-05,2]
[356313771,1742244652549,-500.0,9.315e-05,2]
[356313772,1742244652559,-500.0,9.315e-05,2]
[356313773,1742244652568,-500.0,9.315e-05,2]
[356313774,1742244652577,-3798.91,9.315e-05,2]
[356313775,1742244652587,-500.0,9.315e-05,2]
[356313776,1742244652596,-500.0,9.315e-05,2]
[356313777,1742244652604,-1506.41,9.315e-05,2]
[356313778,1742244652614,-500.0,9.315e-05,2]
[356313779,1742244652623,-500.0,9.315e-05,2]
[356313780,1742244652632,-500.0,9.315e-05,2]
[356313781,1742244652642,-500.0,9.315e-05,2]
[356313782,1742244652651,-500.0,9.315e-05,2]
[356313783,1742244652660,-813.98,9.315e-05,2]
[356313784,1742244652670,-6771.53,9.315e-05,2]
[356313785,1742244652679,-500.0,9.315e-05,2]
[356313786,1742244652689,-937.83,9.315e-05,2]
[356313787,1742244652698,-522.4,9.315e-05,2]
[356313788,1742244652708,-1368.97,9.315e-05,2]
[356313789,1742244652718,-500.0,9.315e-05,2]
[356313790,1742244652727,-500.0,9.315e-05,2]
[356313791,1742244652736,-827.35,9.315e-05,2]
[356313792,1742244652745,-500.0,9.315e-05,2]
[356313793,1742244652754,-2073.77,9.315e-05,2]
[356313794,1742244652764,-658.63,9.315e-05,2]
[356313795,1742244652773,-500.0,9.315e-05,2]
[356313796,1742244652783,-500.0,9.315e-05,2]
[356313797,1742244652792,-500.0,9.315e-05,2]
[356313798,1742244652801,-500.0,9.315e-05,2]
[356313799,1742244652811,-500.0,9.315e-05,2]
[356313800,1742244652820,-5927.71,9.315e-05,2]
[356313801,1742244652829,-7312.73,9.315e-05,2]
[356313802,1742244652839,-500.0,9.315e-05,2]
[356313803,1742244652848,-1007.79,9.315e-05,2]
[356313804,1742244652860,-500.0,9.315e-05,2]
[356313805,1742244652870,-500.0,9.315e-05,2]
[356313806,1742244652984,-500.0,9.315e-05,2]
[356313807,1742244652994,-500.0,9.315e-05,2]
[356313808,1742244653003,-500.0,9.315e-05,2]
[356313809,1742244653012,-500.0,9.315e-05,2]
[356313810,1742244653021,-6899.76,9.315e-05,2]
[356313811,1742244653030,-3609.1,9.315e-05,2]
[356313812,1742244653040,-500.0,9.315e-05,2]
[356313813,1742244653049,-500.0,9.315e-05,2]
[356313814,1742244653058,-500.0,9.315e-05,2]
[356313815,1742244653069,-500.0,9.315e-05,2]
[356313816,1742244653089,-500.0,9.315e-05,2]
[356313817,1742244653098,-569.53915223,9.315e-05,2]
[356313818,1742244653107,-4125.83,9.315e-05,2]
[356313819,1742244653117,-4199.41,9.315e-05,2]
[356313820,1742244653127,-500.0,9.315e-05,2]
[356313821,1742244653135,-578.29,9.315e-05,2]
[356313822,1742244653145,-500.0,9.315e-05,2]
[356313823,1742244653154,-14298.08,9.315e-05,2]
[356313824,1742244653163,-500.0,9.315e-05,2]
[356313825,1742244653173,-763.93,9.315e-05,2]
[356313826,1742244653182,-1631.53,9.315e-05,2]
[356313827,1742244653192,-786.53,9.315e-05,2]
[356313828,1742244653202,-878.74,9.315e-05,2]
[356313829,1742244653211,-114397.04,9.315e-05,2]
[356313830,1742244653220,-500.0,9.315e-05,2]
[356313831,1742244653229,-305.54594375,9.315e-05,2]
[356313832,1742244653239,-500.0,9.315e-05,2]
[356313833,1742244653248,-2010.34,9.315e-05,2]
[356313834,1742244653258,-500.0,9.315e-05,2]
[356313835,1742244653267,-500.0,9.315e-05,2]
[356313836,1742244653277,-3043.41,9.315e-05,2]
[356313837,1742244653287,-500.0,9.315e-05,2]
[356313838,1742244653297,-14210.37,9.315e-05,2]
[356313839,1742244653306,-500.0,9.315e-05,2]
[356313840,1742244653316,-500.0,9.315e-05,2]
[356313841,1742244653325,-4213.08,9.315e-05,2]
[356313842,1742244653335,-500.0,9.315e-05,2]
[356313843,1742244653344,-1265.12,9.315e-05,2]
[356313844,1742244653354,-500.0,9.315e-05,2]
[356313845,1742244653363,-2596.55,9.315e-05,2]
[356313846,1742244653373,-500.0,9.315e-05,2]
[356313847,1742244653383,-1523.2,9.315e-05,2]
[356313848,1742244653392,-500.0,9.315e-05,2]
[356313849,1742244653401,-500.0,9.315e-05,2]
[356313850,1742244653411,-1061.43,9.315e-05,2]
[356313851,1742244653420,-6280.37,9.315e-05,2]
[356313852,1742244653430,-500.0,9.315e-05,2]
[356313853,1742244653439,-1100.41,9.315e-05,2]
[356313854,1742244653448,-500.0,9.315e-05,2]
[356313855,1742244653458,-1002.6,9.315e-05,2]
[356313856,1742244653467,-500.0,9.315e-05,2]
[356313857,1742244653478,-671.85,9.315e-05,2]
[356313858,1742244653487,-704.16,9.315e-05,2]
[356313859,1742244653496,-500.0,9.315e-05,2]
[356313860,1742244653505,-500.0,9.315e-05,2]
[356313861,1742244653515,-500.0,9.315e-05,2]
[356313862,1742244653524,-500.0,9.315e-05,2]
[356313863,1742244653533,-10023.11,9.315e-05,2]
[356313864,1742244653543,-500.0,9.315e-05,2]
[356313865,1742244653552,-500.0,9.315e-05,2]
[356313866,1742244653562,-500.0,9.315e-05,2]
[356313867,1742244653571,-4597.93,9.315e-05,2]
[356313868,1742244653581,-500.0,9.315e-05,2]
[356313869,1742244653590,-729.36,9.315e-05,2]
[356313870,1742244653600,-500.0,9.315e-05,2]
[356313871,1742244653609,-500.0,9.315e-05,2]
[356313872,1742244653618,-500.0,9.315e-05,2]
[356313873,1742244653628,-500.0,9.315e-05,2]
[356313874,1742244653637,-500.0,9.315e-05,2]
[356313875,1742244653646,-500.0,9.315e-05,2]
[356313876,1742244653657,-500.0,9.315e-05,2]
[356313877,1742244653667,-536.70835015,9.315e-05,2]
[356313878,1742244653676,-570.25,9.315e-05,2]
[356313879,1742244653686,-948.28,9.315e-05,2]
[356313880,1742244653695,-500.0,9.315e-05,2]
[356313881,1742244653705,-500.0,9.315e-05,2]
[356313882,1742244653715,-500.0,9.315e-05,2]
[356313883,1742244653724,-500.0,9.315e-05,2]
[356313884,1742244653734,-721.56,9.315e-05,2]
[356313885,1742244653744,-10281.5,9.315e-05,2]
[356313886,1742244653753,-1000.0,9.588e-05,2]
[356313887,1742244653763,-500.0,9.589e-05,2]
[356313888,1742244653772,-185.63853665,9.589e-05,2]
[356313889,1742244653782,-500.0,9.589e-05,2]
[356313890,1742244653791,-500.0,9.589e-05,2]
[356313891,1742244653801,-500.0,9.589e-05,2]
[356313892,1742244653811,-500.0,9.589e-05,2]
[356313893,1742244653821,-500.0,9.589e-05,2]
[356313894,1742244653830,-500.0,9.589e-05,2]
[356313895,1742244653839,-500.0,9.589e-05,2]
[356313896,1742244653849,-500.0,9.589e-05,2]
[356313897,1742244653862,-500.0,9.589e-05,2]
[356313898,1742244653872,-500.0,9.589e-05,2]
[356313899,1742244653882,-500.0,9.589e-05,2]
[356313900,1742244653891,-500.0,9.589e-05,2]
[356313901,1742244653901,-500.0,9.589e-05,2]
[356313902,1742244653911,-500.0,9.589e-05,2]
[356313903,1742244653920,-500.0,9.589e-05,2]
[356313904,1742244653930,-500.0,9.589e-05,2]
[356313905,1742244653941,-500.0,9.589e-05,2]
[356313906,1742244653952,-500.0,9.589e-05,2]
[356313907,1742244653963,-617.79088706,9.589e-05,2]
[356313908,1742244653973,-500.0,9.589e-05,2]
[356313909,1742244653982,-500.0,9.589e-05,2]
[356313910,1742244653992,-500.0,9.589e-05,2]
[356313911,1742244654003,-500.0,9.589e-05,2]
[356313912,1742244654012,-500.0,9.589e-05,2]
[356313913,1742244654022,-500.0,9.589e-05,2]
[356313914,1742244654032,-500.0,9.589e-05,2]
[356313915,1742244654043,-500.0,9.589e-05,2]
[356313916,1742244654053,-500.0,9.589e-05,2]
[356313917,1742244654063,-500.0,9.589e-05,2]
[356313918,1742244654073,-500.0,9.589e-05,2]
[356313919,1742244654083,-500.0,9.589e-05,2]
[356313920,1742244654094,-500.0,9.589e-05,2]
[356313921,1742244654104,-500.0,9.589e-05,2]
[356313922,1742244654113,-500.0,9.589e-05,2]
[356313923,1742244654123,-500.0,9.589e-05,2]
[356313924,1742244654134,-500.0,9.589e-05,2]
[356313925,1742244654144,-926.76,9.589e-05,2]
[356313926,1742244654153,-546.70075741,9.589e-05,2]
[356313927,1742244654163,-500.0,9.589e-05,2]
[356313928,1742244654173,-500.0,9.589e-05,2]
[356313929,1742244654183,-500.0,9.589e-05,2]
[356313930,1742244654192,-648.58,9.589e-05,2]
[356313931,1742244654202,-500.0,9.589e-05,2]
[356313932,1742244654212,-500.0,9.589e-05,2]
[356313933,1742244654222,-596.45,9.589e-05,2]
[356313934,1742244654232,-500.0,9.589e-05,2]
[356313935,1742244654241,-500.0,9.589e-05,2]
[356313936,1742244654251,-500.0,9.589e-05,2]
[356313937,1742244654262,-500.0,9.589e-05,2]
[356313938,1742244654272,-500.0,9.589e-05,2]
[356313939,1742244654282,-500.0,9.589e-05,2]
[356313940,1742244654292,-500.0,9.589e-05,2]
[356313941,1742244654301,-1419.76,9.589e-05,2]
[356313942,1742244654311,-500.0,9.589e-05,2]
[356313943,1742244654321,-637.03,9.589e-05,2]
[356313944,1742244654331,-1265.48,9.589e-05,2]
[356313945,1742244654340,-500.0,9.589e-05,2]
[356313946,1742244654349,-1382.25,9.589e-05,2]
[356313947,1742244654359,-500.0,9.589e-05,2]
[356313948,1742244654369,-356.54,9.589e-05,2]
[356313949,1742244654379,-1535.64,9.589e-05,2]
[356313950,1742244654389,-500.0,9.589e-05,2]
[356313951,1742244654398,-500.0,9.589e-05,2]
[356313952,1742244654408,-477.73945914,9.589e-05,2]
[356313953,1742244654418,-500.0,9.589e-05,2]
[356313954,1742244654428,-500.0,9.589e-05,2]
[356313955,1742244654437,-364.85714955,9.589e-05,2]
[356313956,1742244654446,-500.0,9.589e-05,2]
[356313957,1742244654456,-500.0,9.589e-05,2]
[356313958,1742244654467,-541.79,9.589e-05,2]
[356313959,1742244654477,-1364.41,9.589e-05,2]
[356313960,1742244654487,-500.0,9.589e-05,2]
[356313961,1742244654497,-500.0,9.589e-05,2]
[356313962,1742244654507,-500.0,9.589e-05,2]
[356313963,1742244654517,-500.0,9.589e-05,2]
[356313964,1742244654526,-500.0,9.589e-05,2]
[356313965,1742244654535,-746.9,9.589e-05,2]
[356313966,1742244654545,-500.0,9.589e-05,2]
[356313967,1742244654554,-500.0,9.589e-05,2]
[356313968,1742244654570,-500.0,9.589e-05,2]
[356313969,1742244654582,-178.26343297,9.589e-05,2]
[356313970,1742244654592,-342.67,9.589e-05,2]
[356313971,1742244654602,-1508.57,9.589e-05,2]
[356313972,1742244654611,-500.0,9.589e-05,2]
[356313973,1742244654621,-500.0,9.589e-05,2]
[356313974,1742244654631,-1770.2,9.589e-05,2]
[356313975,1742244654641,-500.0,9.589e-05,2]
[356313976,1742244654650,-500.0,9.589e-05,2]
[356313977,1742244654660,-500.0,9.589e-05,2]
[356313978,1742244654670,-500.0,9.589e-05,2]
[356313979,1742244654680,-500.0,9.589e-05,2]
[356313980,1742244654689,-809.23,9.589e-05,2]
[356313981,1742244654699,-500.0,9.589e-05,2]
[356313982,1742244654709,-500.0,9.589e-05,2]
[356313983,1742244654718,-706.12,9.589e-05,2]
[356313984,1742244654728,-500.0,9.589e-05,2]
[356313985,1742244654737,-500.0,9.589e-05,2]
[356313986,1742244654747,-500.0,9.589e-05,2]
[356313987,1742244654757,-454.45105397,9.589e-05,2]
[356313988,1742244654767,-500.0,9.589e-05,2]
[356313989,1742244654777,-500.0,9.589e-05,2]
[356313990,1742244654786,-500.0,9.589e-05,2]
[356313991,1742244654796,-500.0,9.589e-05,2]
[356313992,1742244654805,-9557.86,9.589e-05,2]
[356313993,1742244654814,-500.0,9.589e-05,2]
[356313994,1742244654824,-500.0,9.589e-05,2]
[356313995,1742244654939,-646.0,9.589e-05,2]
[356313996,1742244654949,-1475.55,9.589e-05,2]
[356313997,1742244654959,-500.0,9.589e-05,2]
[356313998,1742244654968,-1173.32,9.589e-05,2]
[356313999,1742244654978,-1003.57,9.589e-05,2]
[356314000,1742244654988,-500.0,9.589e-05,2]
[356314001,1742244654998,-886.84,9.589e-05,2]
[356314002,1742244655009,-500.0,9.589e-05,2]
[356314003,1742244655019,-500.0,9.589e-05,2]
[356314004,1742244655029,-500.0,9.589e-05,2]
[356314005,1742244655039,-500.0,9.589e-05,2]
[356314006,1742244655049,-667.79,9.589e-05,2]
[356314007,1742244655059,-500.0,9.589e-05,2]
[356314008,1742244655069,-500.0,9.589e-05,2]
[356314009,1742244655079,-500.0,9.589e-05,2]
[356314010,1742244655088,-469.15,9.589e-05,2]
[356314011,1742244655098,-3798.91,9.589e-05,2]
[356314012,1742244655107,-500.0,9.589e-05,2]
[356314013,1742244655117,-500.0,9.589e-05,2]
[356314014,1742244655126,-1506.41,9.589e-05,2]
[356314015,1742244655136,-500.0,9.589e-05,2]
[356314016,1742244655146,-500.0,9.589e-05,2]
[356314017,1742244655156,-500.0,9.589e-05,2]
[356314018,1742244655166,-813.98,9.589e-05,2]
[356314019,1742244655175,-6771.53,9.589e-05,2]
[356314020,1742244655185,-937.83,9.589e-05,2]
[356314021,1742244655195,-522.4,9.589e-05,2]
[356314022,1742244655204,-1368.97,9.589e-05,2]
[356314023,1742244655214,-500.0,9.589e-05,2]
[356314024,1742244655224,-827.35,9.589e-05,2]
[356314025,1742244655233,-500.0,9.589e-05,2]
[356314026,1742244655243,-2073.77,9.589e-05,2]
[356314027,1742244655253,-658.63,9.589e-05,2]
[356314028,1742244655263,-500.0,9.589e-05,2]
[356314029,1742244655273,-500.0,9.589e-05,2]
[356314030,1742244655283,-5927.71,9.589e-05,2]
[356314031,1742244655293,-7312.73,9.589e-05,2]
[356314032,1742244655302,-1007.79,9.589e-05,2]
[356314033,1742244655312,-500.0,9.589e-05,2]
[356314034,1742244655321,-500.0,9.589e-05,2]
[356314035,1742244655331,-500.0,9.589e-05,2]
[356314036,1742244655340,-500.0,9.589e-05,2]
[356314037,1742244655350,-6899.76,9.589e-05,2]
[356314038,1742244655359,-3609.1,9.589e-05,2]
[356314039,1742244655369,-500.0,9.589e-05,2]
[356314040,1742244655379,-500.0,9.589e-05,2]
[356314041,1742244655388,-500.0,9.589e-05,2]
[356314042,1742244655398,-4125.83,9.589e-05,2]
[356314043,1742244655407,-4199.41,9.589e-05,2]
[356314044,1742244655417,-578.29,9.589e-05,2]
[356314045,1742244655426,-500.0,9.589e-05,2]
[356314046,1742244655436,-14298.08,9.589e-05,2]
[356314047,1742244655445,-500.0,9.589e-05,2]
[356314048,1742244655455,-763.93,9.589e-05,2]
[356314049,1742244655465,-1631.53,9.589e-05,2]
[356314050,1742244655475,-786.53,9.589e-05,2]
[356314051,1742244655484,-878.74,9.589e-05,2]
[356314052,1742244655494,-114397.04,9.589e-05,2]
[356314053,1742244655503,-537.83825904,9.589e-05,2]
[356314054,1742244655513,-2010.34,9.589e-05,2]
[356314055,1742244655523,-500.0,9.589e-05,2]
[356314056,1742244655532,-500.0,9.589e-05,2]
[356314057,1742244655542,-3043.41,9.589e-05,2]
[356314058,1742244655552,-500.0,9.589e-05,2]
[356314059,1742244655562,-14210.37,9.589e-05,2]
[356314060,1742244655571,-500.0,9.589e-05,2]
[356314061,1742244655581,-500.0,9.589e-05,2]
[356314062,1742244655590,-4213.08,9.589e-05,2]
[356314063,1742244655600,-500.0,9.589e-05,2]
[356314064,1742244655610,-1265.12,9.589e-05,2]
[356314065,1742244655620,-500.0,9.589e-05,2]
[356314066,1742244655630,-2596.55,9.589e-05,2]
[356314067,1742244655639,-500.0,9.589e-05,2]
[356314068,1742244655649,-1523.2,9.589e-05,2]
[356314069,1742244655659,-500.0,9.589e-05,2]
[356314070,1742244655669,-500.0,9.589e-05,2]
[356314071,1742244655679,-1061.43,9.589e-05,2]
[356314072,1742244655688,-6280.37,9.589e-05,2]
[356314073,1742244655698,-1100.41,9.589e-05,2]
[356314074,1742244655708,-500.0,9.589e-05,2]
[356314075,1742244655717,-1002.6,9.589e-05,2]
[356314076,1742244655726,-500.0,9.589e-05,2]
[356314077,1742244655736,-671.85,9.589e-05,2]
[356314078,1742244655746,-704.16,9.589e-05,2]
[356314079,1742244655756,-213.70358955,9.589e-05,2]
[356314080,1742244655765,-500.0,9.589e-05,2]
[356314081,1742244655775,-500.0,9.589e-05,2]
[356314082,1742244655789,-500.0,9.589e-05,2]
[356314083,1742244655808,-10023.11,9.589e-05,2]
[356314084,1742244655823,-500.0,9.589e-05,2]
[356314085,1742244655841,-500.0,9.589e-05,2]
[356314086,1742244655861,-500.0,9.589e-05,2]
[356314087,1742244655878,-4597.93,9.589e-05,2]
[356314088,1742244655896,-500.0,9.589e-05,2]
[356314089,1742244655912,-729.36,9.589e-05,2]
[356314090,1742244655929,-500.0,9.589e-05,2]
[356314091,1742244655944,-500.0,9.589e-05,2]
[356314092,1742244655958,-500.0,9.589e-05,2]
[356314093,1742244655974,-500.0,9.589e-05,2]
[356314094,1742244655992,-500.0,9.589e-05,2]
[356314095,1742244656010,-500.0,9.589e-05,2]
[356314096,1742244656028,-948.28,9.589e-05,2]
[356314097,1742244656041,-500.0,9.589e-05,2]
[356314098,1742244656056,-633.00564381,9.589e-05,2]
[356314099,1742244656073,-500.0,9.589e-05,2]
[356314100,1742244656086,-721.56,9.589e-05,2]
[356314101,1742244656102,-10281.5,9.589e-05,2]
[356314102,1742244656114,-260.8,9.6e-05,2]
[356314103,1742244656128,-1926.9752176,9.831e-05,2]
[356314104,1742244656142,-500.0,9.863e-05,2]
[356314105,1742244656157,-500.0,9.863e-05,2]
[356314106,1742244656170,-500.0,9.863e-05,2]
[356314107,1742244656185,-500.0,9.863e-05,2]
[356314108,1742244656199,-500.0,9.863e-05,2]
[356314109,1742244656212,-500.0,9.863e-05,2]
[356314110,1742244656226,-500.0,9.863e-05,2]
[356314111,1742244656240,-500.0,9.863e-05,2]
[356314112,1742244656254,-500.0,9.863e-05,2]
[356314113,1742244656268,-500.0,9.863e-05,2]
[356314114,1742244656281,-500.0,9.863e-05,2]
[356314115,1742244656296,-500.0,9.863e-05,2]
[356314116,1742244656309,-500.0,9.863e-05,2]
[356314117,1742244656323,-268.59919537,9.863e-05,2]
[356314118,1742244656337,-500.0,9.863e-05,2]
[356314119,1742244656350,-598.19364098,9.863e-05,2]
[356314120,1742244656364,-500.0,9.863e-05,2]
[356314121,1742244656378,-500.0,9.863e-05,2]
[356314122,1742244656392,-500.0,9.863e-05,2]
[356314123,1742244656406,-500.0,9.863e-05,2]
[356314124,1742244656419,-500.0,9.863e-05,2]
[356314125,1742244656433,-500.0,9.863e-05,2]
[356314126,1742244656446,-500.0,9.863e-05,2]
[356314127,1742244656459,-500.0,9.863e-05,2]
[356314128,1742244656473,-500.0,9.863e-05,2]
[356314129,1742244656487,-500.0,9.863e-05,2]
[356314130,1742244656502,-500.0,9.863e-05,2]
[356314131,1742244656516,-500.0,9.863e-05,2]
[356314132,1742244656530,-500.0,9.863e-05,2]
[356314133,1742244656544,-500.0,9.863e-05,2]
[356314134,1742244656558,-500.0,9.863e-05,2]
[356314135,1742244656571,-500.0,9.863e-05,2]
[356314136,1742244656585,-500.0,9.863e-05,2]
[356314137,1742244656599,-926.76,9.863e-05,2]
[356314138,1742244656612,-314.64819757,9.863e-05,2]
[356314139,1742244656626,-500.0,9.863e-05,2]
[356314140,1742244656639,-500.0,9.863e-05,2]
[356314141,1742244656653,-157.75,9.863e-05,2]
[356314142,1742244656667,-500.0,9.863e-05,2]
[356314143,1742244656681,-596.45,9.863e-05,2]
[356314144,1742244656695,-500.0,9.863e-05,2]
[356314145,1742244656708,-494.17,9.863e-05,2]
[356314146,1742244656721,-500.0,9.863e-05,2]
[356314147,1742244656735,-535.83,9.863e-05,2]
[356314148,1742244656749,-500.0,9.863e-05,2]
[356314149,1742244656762,-610.62950095,9.863e-05,2]
[356314150,1742244656775,-1419.76,9.863e-05,2]
[356314151,1742244656789,-500.0,9.863e-05,2]
[356314152,1742244656802,-637.03,9.863e-05,2]
[356314153,1742244656815,-1265.48,9.863e-05,2]
[356314154,1742244656829,-500.0,9.863e-05,2]
[356314155,1742244656842,-1382.25,9.863e-05,2]
[356314156,1742244656857,-500.0,9.863e-05,2]
[356314157,1742244656871,-1535.64,9.863e-05,2]
[356314158,1742244656885,-500.0,9.863e-05,2]
[356314159,1742244656899,-500.0,9.863e-05,2]
[356314160,1742244656914,-500.0,9.863e-05,2]
[356314161,1742244656925,-500.0,9.863e-05,2]
[356314162,1742244656936,-541.79,9.863e-05,2]
[356314163,1742244656945,-1364.41,9.863e-05,2]
[356314164,1742244656955,-500.0,9.863e-05,2]
[356314165,1742244656964,-500.0,9.863e-05,2]
[356314166,1742244656974,-615.95498905,9.863e-05,2]
[356314167,1742244656984,-290.97,9.863e-05,2]
[356314168,1742244656995,-500.0,9.863e-05,2]
[356314169,1742244657202,-746.9,9.863e-05,2]
[356314170,1742244657223,-500.0,9.863e-05,2]
[356314171,1742244657233,-500.0,9.863e-05,2]
[356314172,1742244657243,-1508.57,9.863e-05,2]
[356314173,1742244657253,-1770.2,9.863e-05,2]
[356314174,1742244657262,-500.0,9.863e-05,2]
[356314175,1742244657274,-500.0,9.863e-05,2]
[356314176,1742244657284,-500.0,9.863e-05,2]
[356314177,1742244657293,-809.23,9.863e-05,2]
[356314178,1742244657303,-500.0,9.863e-05,2]
[356314179,1742244657313,-500.0,9.863e-05,2]
[356314180,1742244657323,-706.12,9.863e-05,2]
[356314181,1742244657332,-500.0,9.863e-05,2]
[356314182,1742244657342,-500.0,9.863e-05,2]
[356314183,1742244657351,-500.0,9.863e-05,2]
[356314184,1742244657361,-500.0,9.863e-05,2]
[356314185,1742244657371,-500.0,9.863e-05,2]
[356314186,1742244657381,-500.0,9.863e-05,2]
[356314187,1742244657390,-9557.86,9.863e-05,2]
[356314188,1742244657400,-500.0,9.863e-05,2]
[356314189,1742244657409,-500.0,9.863e-05,2]
[356314190,1742244657419,-1475.55,9.863e-05,2]
[356314191,1742244657428,-1173.32,9.863e-05,2]
[356314192,1742244657437,-1003.57,9.863e-05,2]
[356314193,1742244657447,-886.84,9.863e-05,2]
[356314194,1742244657456,-500.0,9.863e-05,2]
[356314195,1742244657467,-500.0,9.863e-05,2]
[356314196,1742244657476,-500.0,9.863e-05,2]
[356314197,1742244657486,-667.79,9.863e-05,2]
[356314198,1742244657496,-500.0,9.863e-05,2]
[356314199,1742244657506,-500.0,9.863e-05,2]
[356314200,1742244657515,-3798.91,9.863e-05,2]
[356314201,1742244657527,-500.0,9.863e-05,2]
[356314202,1742244657536,-1506.41,9.863e-05,2]
[356314203,1742244657546,-500.0,9.863e-05,2]
[356314204,1742244657555,-500.0,9.863e-05,2]
[356314205,1742244657565,-500.0,9.863e-05,2]
[356314206,1742244657575,-813.98,9.863e-05,2]
[356314207,1742244657586,-6771.53,9.863e-05,2]
[356314208,1742244657596,-937.83,9.863e-05,2]
[356314209,1742244657606,-522.4,9.863e-05,2]
[356314210,1742244657616,-1368.97,9.863e-05,2]
[356314211,1742244657626,-500.0,9.863e-05,2]
[356314212,1742244657636,-827.35,9.863e-05,2]
[356314213,1742244657646,-500.0,9.863e-05,2]
[356314214,1742244657655,-2073.77,9.863e-05,2]
[356314215,1742244657665,-658.63,9.863e-05,2]
[356314216,1742244657675,-500.0,9.863e-05,2]
[356314217,1742244657684,-5927.71,9.863e-05,2]
[356314218,1742244657694,-7312.73,9.863e-05,2]
[356314219,1742244657704,-1007.79,9.863e-05,2]
[356314220,1742244657714,-500.0,9.863e-05,2]
[356314221,1742244657725,-500.0,9.863e-05,2]
[356314222,1742244657737,-6899.76,9.863e-05,2]
[356314223,1742244657748,-3609.1,9.863e-05,2]
[356314224,1742244657758,-500.0,9.863e-05,2]
[356314225,1742244657767,-500.0,9.863e-05,2]
[356314226,1742244657779,-500.0,9.863e-05,2]
[356314227,1742244657788,-4125.83,9.863e-05,2]
[356314228,1742244657797,-4199.41,9.863e-05,2]
[356314229,1742244657807,-578.29,9.863e-05,2]
[356314230,1742244657816,-500.0,9.863e-05,2]
[356314231,1742244657826,-14298.08,9.863e-05,2]
[356314232,1742244657837,-763.93,9.863e-05,2]
[356314233,1742244657846,-1631.53,9.863e-05,2]
[356314234,1742244657859,-786.53,9.863e-05,2]
[356314235,1742244657870,-878.74,9.863e-05,2]
[356314236,1742244657879,-114397.04,9.863e-05,2]
[356314237,1742244657888,-2010.34,9.863e-05,2]
[356314238,1742244657899,-500.0,9.863e-05,2]
[356314239,1742244657909,-3043.41,9.863e-05,2]
[356314240,1742244657919,-500.0,9.863e-05,2]
[356314241,1742244657928,-14210.37,9.863e-05,2]